bitfinex-derivatives/quotes_SOLF0:USTF0_20240906
["timestamp","ask_amount","ask_price","bid_price","bid_amount"]
[1725651237812,24.56,125.21,125.15,3.9983]
[1725651238009,3.9978,125.18,125.15,3.9983]
[1725651238610,3.9978,125.18,125.16,3.9982]
[1725651238911,3.9974,125.19,125.14,27.2958]
[1725651239503,3.9974,125.19,125.17,3.9979]
[1725651239705,3.9974,125.19,125.14,27.2958]
[1725651240013,3.9976,125.18,125.14,27.2958]
[1725651240513,3.9976,125.18,125.15,3.9985]
[1725651241003,4.09708997,125.2,125.15,3.9985]
[1725651241004,3.998,125.17,125.15,3.9985]
[1725651241402,4.09708997,125.2,125.14,6.7345]
[1725651241604,24.56,125.21,125.14,6.7345]
[1725651241605,3.9982,125.17,125.14,6.7345]
[1725651241811,3.92234585,125.18,125.14,6.7345]
[1725651242010,24.56,125.2,125.14,6.7345]
[1725651242406,24.56,125.18,125.09,79.55571331]
[1725651242609,24.56,125.18,125.1,2.6854]
[1725651242809,24.56,125.18,125.1,31.26371516]
[1725651243010,3.9987,125.15,125.1,27.2454]
[1725651243211,4.00591913,125.2,125.12,24.56]
[1725651243418,3.9979,125.17,125.13,24.56]
[1725651244207,3.9372,125.21,125.13,24.56]
[1725651244408,24.56,125.21,125.13,24.56]
[1725651244620,24.56,125.21,125.13,25.9059]
[1725651245010,3.9979,125.18,125.13,25.9059]
[1725651245215,24.56,125.21,125.13,25.9059]
[1725651245517,3.998,125.17,125.14,3.9987]
[1725651245914,3.998,125.17,125.13,1.3459]
[1725651246118,3.998,125.17,125.14,3.9987]
[1725651246514,3.998,125.17,125.13,1.3459]
[1725651247411,3.998,125.17,125.15,3.9986]
[1725651248812,3.9978,125.18,125.15,3.9986]
[1725651250020,3.9974,125.19,125.15,9.83]
[1725651250614,5.3835,125.22,125.17,9.83]
[1725651250615,15.2135,125.22,125.17,9.83]
[1725651251015,15.2135,125.22,125.13,1.3459]
[1725651251016,9.83,125.21,125.15,9.83]
[1725651251322,3.9971,125.2,125.17,3.9976]
[1725651251817,3.9973,125.19,125.17,3.9976]
[1725651254213,1.3917,125.28,125.18,9.83]
[1725651254416,9.83,125.24,125.18,9.83]
[1725651254616,13.76505634,125.24,125.18,9.83]
[1725651254915,17.76095634,125.24,125.18,9.83]
[1725651255419,3.9955,125.25,125.21,9.83]
[1725651255618,3.91466123,125.24,125.2,9.83]
[1725651255926,7.93925442,125.23,125.2,3.9968]
[1725651256618,3.9958,125.24,125.21,3.9965]
[1725651257018,3.9956,125.25,125.22,3.9962]
[1725651257421,9.83,125.26,125.21,9.83]
[1725651257612,3.9958,125.24,125.21,13.8265]
[1725651257812,8.0363391,125.24,125.21,13.8265]
[1725651258217,13.8705391,125.24,125.16,2.7267]
[1725651258413,13.8705391,125.24,125.18,9.83]
[1725651259122,3.9961,125.23,125.2,3.9968]
[1725651259818,8.0364391,125.24,125.19,9.83]
[1725651260018,1.3917,125.28,125.21,9.83]
[1725651260219,9.83,125.26,125.21,9.83]
[1725651260423,3.9956,125.25,125.22,3.9961]
[1725651260818,3.95018966,125.24,125.18,9.83]
[1725651261117,3.9965,125.22,125.19,3.9971]
[1725651261819,13.78018966,125.24,125.19,3.9971]
[1725651262025,13.78018966,125.24,125.17,9.83]
[1725651262823,9.83,125.22,125.18,3.9974]
[1725651263426,9.83,125.22,125.17,13.8277]
[1725651263825,3.997,125.2,125.17,13.8277]
[1725651264619,3.997,125.2,125.18,3.9974]
[1725651265021,3.9967,125.21,125.18,3.9974]
[1725651265525,3.9967,125.21,125.19,3.9972]
[1725651265726,3.9965,125.22,125.19,9.83]
[1725651265925,3.95018966,125.24,125.19,9.83]
[1725651266120,3.95018966,125.24,125.2,3.9968]
[1725651266322,3.9961,125.23,125.2,3.9968]
[1725651267726,3.9961,125.23,125.21,3.9966]
[1725651268125,3.9961,125.23,125.19,9.83]
[1725651268429,3.9961,125.23,125.2,3.9968]
[1725651268729,3.95018966,125.24,125.19,13.8271]
[1725651269323,3.9965,125.22,125.19,13.8271]
[1725651269529,3.9965,125.22,125.2,3.9968]
[1725651270227,3.9962,125.23,125.2,3.9968]
[1725651270430,3.9962,125.23,125.21,3.9966]
[1725651270618,3.9962,125.23,125.19,9.83]
[1725651271024,3.9962,125.23,125.2,3.9968]
[1725651271625,3.95018966,125.24,125.19,9.83]
[1725651271626,3.9965,125.22,125.19,3.9971]
[1725651271825,3.9965,125.22,125.18,9.83]
[1725651272225,3.9965,125.22,125.19,3.9972]
[1725651272622,9.83,125.22,125.17,9.83]
[1725651273222,3.9968,125.21,125.18,3.9973]
[1725651273422,3.9968,125.21,125.17,9.83]
[1725651273930,3.9968,125.21,125.18,3.9975]
[1725651274929,3.96617719,125.23,125.09,79.55571331]
[1725651274930,9.83,125.19,125.09,79.55571331]
[1725651275146,1.3909,125.2,125.15,9.83]
[1725651275434,3.9976,125.18,125.15,13.8284]
[1725651276030,3.9976,125.18,125.16,3.9982]
[1725651277331,3.9976,125.18,125.15,15.1626]
[1725651277537,9.83,125.2,125.15,11.1643]
[1725651278038,3.9981,125.17,125.15,1.3343]
[1725651278231,9.83,125.2,125.15,11.1643]
[1725651278532,3.9973,125.19,125.16,3.9982]
[1725651278834,9.83,125.2,125.16,3.9982]
[1725651279236,3.9981,125.17,125.15,11.1643]
[1725651280336,3.9981,125.17,125.15,15.1628]
[1725651282939,3.9977,125.18,125.15,15.1628]
[1725651283337,3.9977,125.18,125.16,3.9981]
[1725651285244,3.9977,125.18,125.15,15.1627]
[1725651285838,9.83,125.18,125.14,3.9987]
[1725651286443,3.9982,125.17,125.14,3.9987]
[1725651287042,9.83,125.18,125.14,3.9987]
[1725651287243,3.998,125.17,125.14,3.9987]
[1725651289138,9.83,125.17,125.13,3.9991]
[1725651289346,9.83,125.17,125.12,9.83]
[1725651289643,3.9986,125.15,125.13,3.9992]
[1725651289842,9.83,125.17,125.11,12.5295]
[1725651290039,9.83,125.16,125.11,12.5295]
[1725651290241,13.76168571,125.16,125.11,12.5295]
[1725651291149,13.76168571,125.16,125.12,3.9994]
[1725651291150,3.9988,125.15,125.12,3.9994]
[1725651291446,13.76168571,125.16,125.11,12.5295]
[1725651291641,17.75968571,125.16,125.12,3.999]
[1725651291844,13.828,125.16,125.12,3.999]
[1725651292241,3.9982,125.15,125.12,3.999]
[1725651293047,9.83,125.16,125.11,2.6995]
[1725651293539,9.83,125.16,125.12,9.83]
[1725651293540,3.998,125.16,125.12,9.83]
[1725651293744,9.83,125.18,125.13,9.83]
[1725651294144,3.9977,125.17,125.13,13.8286]
[1725651294447,9.83,125.18,125.13,13.8286]
[1725651295454,234.9899,125.26,125.14,9.83]
[1725651295640,9.83,125.2,125.14,9.83]
[1725651295844,3.9975,125.18,125.14,13.8284]
[1725651296551,9.83,125.2,125.14,9.83]
[1725651296947,3.9974,125.18,125.14,13.8283]
[1725651297249,13.8274,125.18,125.14,3.9983]
[1725651297547,9.83,125.17,125.13,3.9986]
[1725651298348,9.83,125.17,125.12,3.999]
[1725651298743,3.9982,125.15,125.12,3.999]
[1725651298953,13.77409056,125.16,125.11,16.5288]
[1725651299451,3.9984,125.15,125.11,16.5288]
[1725651299761,13.77409056,125.16,125.11,1.3946]
[1725651300252,3.94409056,125.16,125.11,11.2246]
[1725651300449,3.9986,125.14,125.11,11.2246]
[1725651300857,3.9986,125.14,125.11,5.3939]
[1725651301353,3.9988,125.13,125.11,1.3946]
[1725651301548,3.9988,125.13,125.1,5.3242]
[1725651302350,3.9988,125.13,125.1,15.1542]
[1725651302550,3.9987,125.14,125.11,9.83]
[1725651302745,3.9987,125.14,125.1,1.3246]
[1725651302746,1.3206,125.22,125.12,9.83]
[1725651302955,1.3206,125.22,125.14,9.83]
[1725651303254,9.83,125.19,125.14,9.83]
[1725651304353,3.9977,125.17,125.14,13.8283]
[1725651305555,9.83,125.23,125.1,1.3246]
[1725651305747,9.83,125.19,125.1,1.3246]
[1725651305957,9.83,125.19,125.11,3.56908784]
[1725651306153,9.83,125.19,125.13,9.83]
[1725651306359,3.9976,125.17,125.13,17.89987455]
[1725651306957,3.9976,125.17,125.13,13.8286]
[1725651307250,3.9976,125.17,125.13,9.83]
[1725651307460,9.83,125.18,125.13,9.83]
[1725651307654,9.83,125.18,125.12,9.83]
[1725651307655,13.73888753,125.18,125.12,9.83]
[1725651307855,3.9982,125.15,125.12,13.829]
[1725651308359,3.9982,125.15,125.12,9.83]
[1725651308761,9.83,125.16,125.11,8.01004118]
[1725651308955,9.83,125.16,125.12,13.8291]
[1725651309255,4.04304637,125.17,125.13,9.83]
[1725651309456,9.83,125.19,125.13,9.83]
[1725651309676,9.83,125.18,125.13,9.83]
[1725651309852,9.83,125.16,125.11,11.89081444]
[1725651310057,9.83,125.16,125.11,2.06081444]
[1725651310460,3.9986,125.14,125.11,2.06081444]
[1725651310654,9.83,125.16,125.12,3.9991]
[1725651310861,13.9070518,125.18,125.12,3.9991]
[1725651311161,9.83,125.18,125.11,9.83]
[1725651311360,9.83,125.16,125.11,9.83]
[1725651311562,107.72463767,125.23,125.13,9.83]
[1725651311763,107.72463767,125.23,125.14,9.83]
[1725651311960,9.83,125.2,125.14,9.83]
[1725651312259,3.9977,125.17,125.13,9.83]
[1725651312565,4.05232392,125.18,125.13,9.83]
[1725651312861,3.998,125.16,125.13,13.8286]
[1725651313057,13.87632344,125.17,125.11,1.3647]
[1725651313262,9.83,125.16,125.1,12.4623]
[1725651313463,3.9986,125.14,125.11,13.8294]
[1725651315365,3.9986,125.14,125.1,2.6323]
[1725651315366,3.9988,125.13,125.1,12.4623]
[1725651315864,3.9989,125.13,125.1,16.4619]
[1725651317057,3.9986,125.14,125.11,13.8294]
[1725651318158,3.9986,125.14,125.1,2.6323]
[1725651318159,4.04632344,125.17,125.13,9.83]
[1725651318358,9.83,125.17,125.12,9.83]
[1725651318564,3.9988,125.13,125.1,16.4619]
[1725651318761,3.9988,125.13,125.1,6.6319]
[1725651319068,3.9988,125.13,125.1,12.4623]
[1725651319263,3.9988,125.13,125.1,2.6323]
[1725651319469,3.9988,125.13,125.11,9.83]
[1725651320465,3.91382571,125.15,125.1,12.4623]
[1725651320857,3.91382571,125.15,125.1,16.4619]
[1725651321070,9.83,125.14,125.1,2.6323]
[1725651321471,9.83,125.14,125.1,16.462]
[1725651321871,9.83,125.14,125.09,13.83]
[1725651322283,13.75063507,125.16,125.1,9.83]
[1725651322570,1.3832,125.19,125.11,9.83]
[1725651322781,9.83,125.17,125.11,9.83]
[1725651322968,3.9986,125.14,125.11,13.8293]
[1725651323473,3.90663423,125.16,125.07,2.6781]
[1725651323666,1.3832,125.19,125.11,9.83]
[1725651323975,9.83,125.17,125.11,9.83]
[1725651324170,3.9984,125.15,125.11,13.8293]
[1725651324377,3.97215571,125.16,125.11,9.83]
[1725651324568,3.9984,125.15,125.11,13.8292]
[1725651324771,3.97215571,125.16,125.11,9.83]
[1725651325571,3.9987,125.14,125.11,9.83]
[1725651326478,3.9987,125.14,125.11,13.8294]
[1725651326778,3.9987,125.14,125.08,4.03576461]
[1725651326779,9.83,125.16,125.1,9.83]
[1725651326971,9.83,125.14,125.1,9.83]
[1725651327167,13.8287,125.14,125.1,9.83]
[1725651327581,13.8287,125.14,125.1,13.8296]
[1725651327781,9.83,125.14,125.1,9.83]
[1725651328274,3.9987,125.14,125.11,9.83]
[1725651328471,9.83,125.18,125.12,9.83]
[1725651328677,9.83,125.17,125.12,9.83]
[1725651328870,3.9984,125.15,125.12,9.83]
[1725651329074,3.9984,125.15,125.11,13.8292]
[1725651329479,3.9985,125.14,125.11,13.8292]
[1725651330477,3.91663483,125.16,125.12,9.83]
[1725651330686,9.83,125.18,125.12,9.83]
[1725651331074,3.998,125.16,125.13,3.9986]
[1725651331471,9.83,125.17,125.11,9.83]
[1725651331675,9.83,125.17,125.11,13.8292]
[1725651332477,3.9985,125.14,125.11,13.8292]
[1725651332880,3.92382731,125.18,125.12,13.829]
[1725651333079,3.9978,125.17,125.12,9.83]
[1725651333386,9.83,125.18,125.13,3.9986]
[1725651333682,3.9979,125.16,125.13,3.9986]
[1725651333883,13.74462583,125.18,125.14,9.83]
[1725651334283,3.9979,125.16,125.14,9.83]
[1725651335083,3.9977,125.17,125.14,13.8284]
[1725651335388,1.3832,125.19,125.14,9.83]
[1725651335783,3.9974,125.18,125.15,3.998]
[1725651336386,3.9974,125.18,125.14,13.8283]
[1725651336686,3.9975,125.17,125.14,13.8283]
[1725651337985,4.03087778,125.18,125.14,9.83]
[1725651338187,1.3832,125.19,125.14,9.83]
[1725651338587,3.9975,125.18,125.15,9.83]
[1725651338787,109.13673767,125.23,125.16,9.83]
[1725651339098,3.9967,125.2,125.17,3.9974]
[1725651339293,3.9967,125.2,125.18,9.83]
[1725651339592,3.9967,125.2,125.17,3.9974]
[1725651340894,9.83,125.21,125.16,13.8277]
[1725651341389,9.83,125.19,125.13,1.3089]
[1725651341590,9.83,125.19,125.13,11.1389]
[1725651341992,3.9977,125.17,125.14,3.9983]
[1725651342292,3.99752221,125.18,125.13,11.1389]
[1725651342591,13.82752221,125.18,125.13,1.3089]
[1725651343188,13.82752221,125.18,125.13,5.3075]
[1725651343189,3.9979,125.16,125.13,5.3075]
[1725651343795,3.9977,125.17,125.14,3.9985]
[1725651344091,3.99752221,125.18,125.13,11.1389]
[1725651344285,3.998,125.16,125.13,15.1375]
[1725651344491,3.99752221,125.18,125.13,11.1389]
[1725651344695,9.83,125.17,125.13,1.3089]
[1725651344893,3.9983,125.15,125.12,15.1833]
[1725651345389,9.83,125.16,125.11,9.83]
[1725651345789,9.83,125.16,125.07,1.3371]
[1725651345989,3.9989,125.13,125.1,13.8295]
[1725651346295,13.74168731,125.16,125.12,9.83]
[1725651346993,3.9987,125.14,125.12,9.83]
[1725651347202,13.74168731,125.16,125.1,13.8296]
[1725651347491,3.9987,125.14,125.1,9.83]
[1725651347693,3.91168731,125.16,125.11,13.8292]
[1725651347896,13.74168731,125.16,125.1,9.83]
[1725651348193,3.9987,125.14,125.11,13.8294]
[1725651348995,3.9983,125.15,125.11,13.8294]
[1725651349392,3.9983,125.15,125.13,9.83]
[1725651349599,3.93022833,125.15,125.11,1.3715]
[1725651349796,9.83,125.16,125.11,1.3715]
[1725651350296,4.09664562,125.15,125.11,1.3715]
[1725651350600,3.9983,125.15,125.11,5.3706]
[1725651350897,3.9983,125.15,125.11,11.2015]
[1725651351496,3.9983,125.15,125.12,3.9989]
[1725651352298,4.09664562,125.16,125.11,15.2007]
[1725651352801,3.9984,125.15,125.12,3.9991]
[1725651354404,3.9985,125.14,125.11,15.2008]
[1725651355302,3.9985,125.14,125.12,3.9991]
[1725651355602,2.6913,125.22,125.13,9.83]
[1725651355603,3.9983,125.15,125.13,9.83]
[1725651355996,3.9983,125.15,125.11,11.2015]
[1725651356198,3.9985,125.14,125.11,11.2015]
[1725651356499,3.91103449,125.16,125.11,11.2015]
[1725651356698,3.91103449,125.16,125.12,3.999]
[1725651357002,4.07072539,125.16,125.12,3.999]
[1725651357802,9.83,125.17,125.12,3.999]
[1725651358200,3.95111583,125.17,125.13,9.83]
[1725651358406,3.9983,125.15,125.13,9.83]
[1725651358700,3.98031817,125.16,125.12,3.9989]
[1725651358905,9.83,125.18,125.12,3.9989]
[1725651359302,13.83151986,125.18,125.12,3.9989]
[1725651359610,3.9988,125.14,125.11,11.2015]
[1725651360509,3.9983,125.15,125.13,9.83]
[1725651361001,3.9984,125.15,125.12,13.8289]
[1725651361710,3.9985,125.14,125.12,13.8289]
[1725651362710,2.6913,125.22,125.11,1.3715]
[1725651362711,9.83,125.2,125.13,9.83]
[1725651362907,9.83,125.2,125.15,9.83]
[1725651363313,3.9972,125.18,125.16,3.9977]
[1725651363500,9.83,125.21,125.16,3.9977]
[1725651363707,9.83,125.2,125.15,9.83]
[1725651364007,9.83,125.19,125.14,13.8283]
[1725651364411,3.9974,125.18,125.15,3.9981]
[1725651365110,9.83,125.19,125.15,3.9981]
[1725651365515,3.9973,125.18,125.15,3.9981]
[1725651365709,9.83,125.2,125.15,3.9981]
[1725651366115,3.9975,125.18,125.14,13.8282]
[1725651366415,3.9975,125.18,125.14,9.83]
[1725651366619,3.9975,125.18,125.15,13.8279]
[1725651366812,2.6913,125.22,125.12,2.6846]
[1725651367017,3.9967,125.2,125.18,9.83]
[1725651368218,9.83,125.2,125.14,9.83]
[1725651368406,9.83,125.2,125.12,2.6846]
[1725651368611,3.9977,125.17,125.14,13.8283]
[1725651369008,3.9994,125.12,125.09,4.0001]
[1725651369311,4.04767644,125.14,125.1,9.83]
[1725651369513,9.83,125.15,125.1,9.83]
[1725651369713,9.83,125.17,125.11,13.8293]
[1725651370016,9.83,125.17,125.12,9.83]
[1725651370317,3.9983,125.15,125.12,13.8291]
[1725651370514,9.83,125.17,125.12,9.83]
[1725651370710,9.83,125.17,125.11,9.83]
[1725651370910,3.9987,125.14,125.11,9.83]
[1725651371106,9.83,125.16,125.11,9.83]
[1725651371306,1.4236,125.18,125.11,9.83]
[1725651371506,9.83,125.17,125.11,9.83]
[1725651371909,3.9984,125.15,125.12,9.83]
[1725651372224,1.4236,125.18,125.13,9.83]
[1725651372716,3.998,125.16,125.13,9.83]
[1725651372914,1.4236,125.18,125.13,9.83]
[1725651373519,3.9979,125.16,125.13,9.83]
[1725651373718,11.2536,125.18,125.13,9.83]
[1725651374607,3.998,125.16,125.13,9.83]
[1725651376111,3.998,125.16,125.13,13.8287]
[1725651377312,3.998,125.16,125.13,9.83]
[1725651377820,3.9982,125.15,125.13,9.83]
[1725651378812,3.9982,125.15,125.13,13.8288]
[1725651379627,3.9982,125.15,125.13,9.83]
[1725651379808,3.9988,125.14,125.11,9.83]
[1725651380617,3.9988,125.14,125.11,13.8292]
[1725651381007,3.9988,125.14,125.12,9.83]
[1725651381216,3.9983,125.15,125.13,9.83]
[1725651384209,3.9985,125.14,125.12,9.83]
[1725651384714,11.2536,125.18,125.12,9.83]
[1725651385320,9.83,125.17,125.11,9.83]
[1725651385617,1.4236,125.18,125.13,9.83]
[1725651386020,3.9976,125.17,125.14,13.8283]
[1725651386719,3.9979,125.16,125.14,13.8283]
[1725651386916,3.91888673,125.19,125.13,13.8287]
[1725651387118,9.83,125.19,125.13,13.8287]
[1725651387310,13.76863615,125.19,125.13,13.8287]
[1725651388321,3.9983,125.15,125.13,9.83]
[1725651389115,3.9983,125.15,125.13,13.8288]
[1725651390323,3.998,125.16,125.13,9.83]
[1725651390821,3.998,125.16,125.13,13.8286]
[1725651392417,3.93863615,125.19,125.13,13.8286]
[1725651392616,9.83,125.2,125.15,9.83]
[1725651392823,3.9978,125.16,125.15,9.83]
[1725651394420,3.9978,125.16,125.14,3.9985]
[1725651394625,3.9978,125.16,125.14,9.83]
[1725651395020,13.82400087,125.18,125.11,4.123]
[1725651395224,9.83,125.17,125.12,9.83]
[1725651395422,9.83,125.16,125.1,13.8296]
[1725651395622,13.83311999,125.16,125.08,1.386]
[1725651395928,13.83311999,125.16,125.1,9.83]
[1725651396422,4.00311999,125.16,125.11,9.83]
[1725651396727,3.999,125.13,125.11,9.83]
[1725651397324,4.00712031,125.15,125.1,13.8297]
[1725651397524,11.1787,125.16,125.1,13.8297]
[1725651397922,15.11781487,125.16,125.1,13.8297]
[1725651398124,5.28781487,125.16,125.12,9.83]
[1725651398322,5.28781487,125.16,125.08,1.386]
[1725651398629,5.28781487,125.16,125.11,9.83]
[1725651399531,15.11781487,125.16,125.1,13.8296]
[1725651399734,15.11781487,125.16,125.11,9.83]
[1725651400028,3.9989,125.13,125.11,9.83]
[1725651401130,3.9991,125.12,125.11,9.83]
[1725651401336,9.83,125.15,125.1,9.83]
[1725651402032,3.9994,125.11,125.09,3.9999]
[1725651402334,3.9994,125.11,125.1,9.83]
[1725651403029,3.9994,125.11,125.09,3.9999]
[1725651403331,3.9994,125.11,125.1,9.83]
[1725651404029,3.9993,125.12,125.1,13.8297]
[1725651404230,3.9993,125.12,125.11,9.83]
[1725651405132,15.11781487,125.16,125.11,9.83]
[1725651405537,9.83,125.14,125.1,9.83]
[1725651405830,3.9996,125.11,125.1,9.83]
[1725651406231,15.11781487,125.16,125.1,9.83]
[1725651407025,3.9993,125.12,125.1,9.83]
[1725651407329,5.28781487,125.16,125.11,9.83]
[1725651407528,3.9991,125.12,125.1,9.83]
[1725651408739,15.11781487,125.16,125.1,9.83]
[1725651409341,15.11781487,125.16,125.11,9.83]
[1725651410340,3.999,125.13,125.11,9.83]
[1725651412340,3.9991,125.12,125.09,3.9999]
[1725651412541,3.9991,125.12,125.1,9.83]
[1725651414743,3.9991,125.12,125.1,13.8297]
[1725651416349,3.9991,125.12,125.11,9.83]
[1725651417151,15.11781487,125.16,125.09,3.9998]
[1725651417350,15.11781487,125.16,125.09,13.8298]
[1725651417547,3.9997,125.11,125.08,1.386]
[1725651417852,3.9997,125.11,125.09,9.83]
[1725651420453,3.9992,125.12,125.1,9.83]
[1725651420649,3.9992,125.12,125.11,9.83]
[1725651420847,9.83,125.15,125.08,11.216]
[1725651421156,9.83,125.13,125.08,11.216]
[1725651421556,3.9998,125.1,125.08,11.216]
[1725651422250,3.9996,125.11,125.08,15.2162]
[1725651424460,3.9998,125.1,125.08,5.3862]
[1725651424650,3.9998,125.1,125.08,5.3662]
[1725651425256,3.9998,125.1,125.08,15.1962]
[1725651425957,3.9998,125.1,125.08,11.196]
[1725651426755,9.83,125.12,124.96,3.93200707]
[1725651426959,31.95861487,125.16,125.03,1.3208]
[1725651427158,9.83,125.1,125.05,9.83]
[1725651427457,4.01536678,125.09,125.03,1.3208]
[1725651427651,9.83,125.11,125.06,9.83]
[1725651429158,4.0005,125.08,125.06,9.83]
[1725651429358,9.83,125.09,125.03,1.3208]
[1725651429554,4.0008,125.07,125.04,9.83]
[1725651429752,4.0008,125.07,125.05,9.83]
[1725651429949,4.05778967,125.08,125.03,1.3208]
[1725651430153,9.83,125.04,124.8,24.0]
[1725651430350,1.3338,125.03,124.94,4.99613003]
[1725651430550,2.6398,125.03,124.96,9.83]
[1725651430750,2.6398,125.03,124.99,9.83]
[1725651430751,1.3338,125.03,124.99,9.83]
[1725651430950,9.83,125.05,124.99,9.83]
[1725651431552,4.0022,125.03,125.0,9.83]
[1725651432064,9.83,125.05,124.99,9.83]
[1725651432252,4.0022,125.03,124.99,9.83]
[1725651432557,4.0022,125.03,124.99,13.8332]
[1725651432763,4.0018,125.04,125.01,9.83]
[1725651433057,7.9977,125.13,124.96,1.323]
[1725651433058,7.9945,125.18,125.03,9.83]
[1725651433254,119.61428258,125.12,125.06,9.83]
[1725651433458,4.0001,125.09,125.06,9.83]
[1725651433768,119.61428258,125.12,125.07,9.83]
[1725651434362,3.9998,125.1,125.07,9.83]
[1725651434957,4.0,125.1,125.06,4.0008]
[1725651435158,4.0,125.1,125.07,9.83]
[1725651435456,119.61428258,125.12,125.07,9.83]
[1725651435457,109.78428258,125.12,125.07,9.83]
[1725651435765,12.568,125.16,125.04,6.87350233]
[1725651436062,3.9988,125.13,125.11,9.83]
[1725651436957,13.92862102,125.14,125.08,9.83]
[1725651437861,13.92862102,125.14,125.05,5.44012794]
[1725651437862,4.09862102,125.14,125.09,9.83]
[1725651438062,3.9993,125.12,125.09,9.83]
[1725651438260,4.00199976,125.13,125.11,9.83]
[1725651438457,11.242,125.16,125.11,9.83]
[1725651438660,3.999,125.13,125.11,9.83]
[1725651438854,4.01000215,125.13,125.11,9.83]
[1725651439060,9.83,125.15,125.08,9.83]
[1725651439267,13.73156965,125.15,125.08,9.83]
[1725651439468,13.71156965,125.15,125.08,9.83]
[1725651439766,3.9996,125.11,125.1,9.83]
[1725651439962,1.412,125.16,125.1,9.83]
[1725651440164,3.9988,125.14,125.12,9.83]
[1725651440365,5.46481499,125.16,125.12,9.83]
[1725651441167,3.9993,125.12,125.09,9.83]
[1725651442467,4.0006,125.08,125.05,4.09602794]
[1725651442672,1.321,125.15,125.06,9.83]
[1725651442966,3.999,125.13,125.1,9.83]
[1725651443163,3.999,125.13,125.12,9.83]
[1725651445062,3.999,125.13,125.11,9.83]
[1725651445264,9.83,125.14,125.08,9.83]
[1725651445567,9.83,125.14,125.09,9.83]
[1725651445863,5.46481499,125.16,125.11,9.83]
[1725651446064,15.29481499,125.16,125.11,9.83]
[1725651446369,3.9991,125.12,125.11,9.83]
[1725651448666,9.83,125.14,125.08,9.83]
[1725651449066,3.9997,125.11,125.08,9.83]
[1725651449267,9.83,125.11,125.05,1.37]
[1725651449470,9.83,125.12,125.06,9.83]
[1725651449965,11.1836,125.13,125.07,9.83]
[1725651450562,9.83,125.12,125.06,9.83]
[1725651450769,9.83,125.11,125.06,9.83]
[1725651451068,4.0,125.1,125.06,9.83]
[1725651451269,4.0,125.1,125.07,9.83]
[1725651451459,9.83,125.12,125.07,9.83]
[1725651451668,1.3536,125.13,125.07,9.83]
[1725651451960,1.3536,125.13,125.09,9.83]
[1725651452171,5.46481499,125.16,125.1,9.83]
[1725651452362,1.3738,125.17,125.12,9.83]
[1725651453773,3.9988,125.13,125.11,9.83]
[1725651454071,11.2038,125.17,125.11,9.83]
[1725651454277,1.3738,125.17,125.12,9.83]
[1725651454975,3.9988,125.13,125.12,9.83]
[1725651455272,9.83,125.13,125.07,9.83]
[1725651455464,3.9999,125.1,125.07,9.83]